Cogmind - Beta 17 @@@ ROGUE MODE // 2026.08.10 @ 00:51:49 Player: MrMistersen Result: Destroyed by Y-45 Defender with Beam Rifle Performance ------------- Evolutions (1) 500 Regions Visited (2) 400 Robots Destroyed (19) 95 Value Destroyed (410) 410 Prototype IDs (0) 0 Alien Tech Used (0) 0 Bonus (0) 0 TOTAL SCORE: 1405 Bonus ------- None Cogmind --------- Core Integrity 0/400 Matter 276/300 Energy 34/100 System Corruption 1% Temperature Hot (207) Movement Core (2450) Ox48 Location -9/Materials Parts ------- > --- POWER (1) -------- (None) > --- PROPULSION (3) --- (None) > --- UTILITY (3) ------ Cargo Storage Unit > --- WEAPON (2) ------- Beam Rifle Beam Rifle > --- INVENTORY (30) --- Ion Engine Light Treads Light Treads Light Treads Flight Unit Heat Sink Large Storage Unit Field Recycling Unit (0) Field Recycling Unit (0) Small Laser Small Laser Beam Rifle Light Assault Rifle Autogun Welding Torch Peak State ------------ > --- POWER ------------ Improved Ion Engine > --- PROPULSION ------- Aluminum Leg Aluminum Leg > --- UTILITY ---------- Cargo Storage Unit Terrain Scanner > --- WEAPON ----------- Heavy Assault Rifle Autogun > --- INVENTORY -------- Ion Engine Light Treads Light Treads Light Treads Flight Unit Heat Sink Large Storage Unit Field Recycling Unit Field Recycling Unit Small Laser Small Laser Beam Rifle Beam Rifle Beam Rifle Beam Rifle Assault Rifle Light Assault Rifle Welding Torch [Rating: 13] Favorites ----------- Power Light Ion Engine Engine Light Ion Engine Propulsion Aluminum Leg Treads Light Treads Leg Aluminum Leg Utility Cargo Storage Unit Device Tractor Beam Storage Cargo Storage Unit Weapon Assault Rifle Energy Gun EM Pulse Gun Ballistic Gun Assault Rifle Build | -11 -10 -9 ------- Run | Yrd Mat Mat Slots Evolved 2 | . . 2 Power . | . . . Propulsion 1 | . . 1 Utility 1 | . . 1 Weapon . | . . . Parts Attached 20 | 6 2 12 Power 2 | 1 . 1 Engine 2 | 1 . 1 Core . | . . . Reactor . | . . . Propulsion 5 | 2 . 3 Treads 2 | 2 . . Leg 3 | . . 3 Wheel . | . . . Hover . | . . . Flight . | . . . Utility 6 | 1 2 3 Device 3 | . 1 2 Storage 3 | 1 1 1 Processor . | . . . Hackware . | . . . Protection . | . . . Artifact . | . . . Weapon 7 | 2 . 5 Energy Gun 4 | 1 . 3 Energy Cannon . | . . . Ballistic Gun 3 | 1 . 2 Ballistic Cannon . | . . . Launcher . | . . . Special Weapon . | . . . Impact Weapon . | . . . Slashing Weapon . | . . . Piercing Weapon . | . . . Special Melee Weapon . | . . . Unidentified Prototypes . | . . . Corrupted Parts 1 | . . 1 System Corruption 1 | . . 1 Parts Lost 8 | . . 8 Power 1 | . . 1 Propulsion 3 | . . 3 Utility 1 | . . 1 Weapon 3 | . . 3 Highest Loss Streak 5 | . . 5 To Critical Strikes . | . . . Average Backups 9 | 1 2 11 Power . | . 1 1 Propulsion 1 | . . 2 Utility 2 | . . 3 Weapon 3 | . 1 4 Tool/Special . | . . . Unused Backups 10 | . . 10 Power 1 | . . 1 Propulsion 2 | . . 2 Utility 2 | . . 2 Weapon 4 | . . 4 Tool/Special 1 | . . 1 Average Slot Usage (%) 80 | . 99 76 Engine 11 | . 14 10 Treads 11 | . 28 7 Leg 13 | . . 16 Device 7 | . 1 8 Storage 13 | . 25 11 Energy Gun 10 | . 14 10 Ballistic Gun 12 | . 14 11 Peak Build Rating 13 | 6 7 13 Average Rating 8 | 3 6 9 On Entrance 4 | . 6 7 Avg Prop Armor Cover (%) . | . . . Naked Turns . | . . . Heaviest Build 159 | 12 32 159 Greatest Support 40 | 40 40 40 Greatest Overweight (x) 51 | . . 51 Average Overweight (x) 2 | . . 4 Largest Inventory Capacity 30 | 8 15 30 Average Capacity 26 | 6 14 29 Most Carried 18 | 5 4 18 Average Carried 9 | 1 2 11 Final Capacity 30 | 8 15 30 Final Carried 15 | 2 4 15 Class Distribution -------------------- 77% | Hauler-Mutant 22% | Mutant Dominant Class ---------------- Mutant | -10/Materials Hauler-Mutant | -9/Materials Resources | -11 -10 -9 ----------- Run | Yrd Mat Mat Matter Collected 467 | 191 94 182 Remotely 68 | . . 68 Salvage Created 567 | . 94 473 Parts 51 | . 5 46 Haulers Intercepted . | . . . Recyclers Shooed . | . . . Parts Field Recycled . | . . . Retrieved Matter . | . . . Parts Self-Destructed . | . . . Prevented . | . . . Parts Restored . | . . . Kills | -11 -10 -9 ------- Run | Yrd Mat Mat Combat Hostiles Destroyed 14 | . 1 13 Guns 13 | . 1 12 AOE 1 | . . 1 Classes Destroyed 7 | . 2 5 Worker 1 | . . 1 Builder 2 | . . 2 Recycler 1 | . 1 . Watcher 1 | . . 1 Swarmer 6 | . . 6 Grunt 6 | . 1 5 Sentry 2 | . . 2 Best Kill Streak 3 | . 1 3 Combat Bots Only 3 | . 1 3 Max Kills in Single Turn 2 | . 1 2 Gunslinging . | . . . Exploded 1 | . . 1 Melee . | . . . Uniques/NPCs Destroyed . | . . . Combat | -11 -10 -9 -------- Run | Yrd Mat Mat Hostile Shots Fired 190 | . 8 182 Missed 56 | . 3 53 Hits 134 | . 5 129 Melee 1 | . . 1 Projectile 133 | . 5 128 Critical Strikes 6 | . . 6 Damage Taken 1475 | . 56 1419 Core 419 | . 10 409 Absorbed by Shields . | . . . Core Remaining (%) 98 | 100 96 . Volleys Fired 48 | . 5 43 Largest 2 | . 2 2 Hottest 112 | . 60 112 Shots Fired 89 | . 10 79 Gun 89 | . 10 79 Cannon . | . . . Launcher . | . . . Special . | . . . Kinetic 42 | . 5 37 Thermal 21 | . . 21 Explosive . | . . . Electromagnetic 26 | . 5 21 Robot Hit Streak 10 | . 4 10 Robot Miss Streak 3 | . 2 3 Penetration Max . | . . . Secondary Targets 6 | . . 6 Max Gunslinging Chain 1 | . . 1 Shots Hit Robots 55 | . 5 50 Core Hits 29 | . 3 26 Critical Kills . | . . . Critical Parts Destroyed . | . . . Critical Strikes 3 | . . 3 Burn 3 | . . 3 Melee Attacks . | . . . Impact . | . . . Slashing . | . . . Piercing . | . . . Sneak Attacks . | . . . Combat Hostiles . | . . . Follow-up Attacks . | . . . Damage Inflicted 939 | . 80 859 Guns 798 | . 80 718 Cannons . | . . . Explosions 141 | . . 141 Melee . | . . . Ramming . | . . . Kinetic 304 | . 40 264 Thermal 416 | . . 416 Explosive . | . . . Electromagnetic 219 | . 40 179 Impact . | . . . Slashing . | . . . Piercing . | . . . Highest Corruption 1 | . . 1 Average Corruption 1 | . . 1 Corruption Purged . | . . . Corruption Blocked . | . . . Effects 5 | . . 5 Message Errors 2 | . . 2 Heat Flow Errors 2 | . . 2 Parts Rejected 1 | . . 1 Overload Shots . | . . . Overflow Damage . | . . . Projectiles . | . . . Explosions . | . . . Melee . | . . . Knockbacks . | . . . Impact . | . . . Kinetic . | . . . Secondary . | . . . Self-Inflicted Damage . | . . . Shots . | . . . Rammed . | . . . Targets Rammed . | . . . Kicked . | . . . Crushed . | . . . Highest Temperature 374 | . 24 374 Average Temperature 125 | . 15 136 Received Heat Transfer 387 | . 30 357 Effects 1 | . . 1 Energy Bleed 1 | . . 1 Siege Activations . | . . . Martial Activations . | . . . Shielding Activations . | . . . Robots Disrupted . | . . . Combat Hostiles . | . . . Robots Corrupted . | . . . Combat Hostiles . | . . . Parts Fried . | . . . Impact Corruptions . | . . . Robots Melted . | . . . Combat Hostiles . | . . . Parts Melted 3 | . . 3 Heat Transferred 1025 | . . 1025 Parts Sabotaged . | . . . Parts Stolen . | . . . Parts Stripped . | . . . Power Chain Reactions 1 | . . 1 Alert | -11 -10 -9 ------- Run | Yrd Mat Mat Maximum Alert Level . | . . . Low Security (%) 100 | 100 100 100 Level 1 . | . . . Level 2 . | . . . Level 3 . | . . . Level 4 . | . . . Level 5 . | . . . High Security . | . . . Max Security . | . . . Peak Influence 85 | . 20 85 Initial . | . . . Average 19 | . . 24 Influence Increases 403 | . 25 378 Destroy 0b10 Robot/C 280 | . 20 260 Destroy 0b10 Robot/NC 25 | . 5 20 Destroy Leader 62 | . . 62 Successful Hack 2 | . . 2 Disable Machine 15 | . . 15 Destroy Structure 4 | . . 4 Lose Combat Pursuer 15 | . . 15 Influence Decreases 336 | . 25 311 Time Decay 306 | . 25 281 Lost Part 30 | . . 30 Squads Dispatched 2 | . . 2 Investigation 1 | . . 1 Extermination . | . . . Reinforcement 1 | . . 1 Assault . | . . . Garrison . | . . . Intercept . | . . . Searches Triggered . | . . . Construction Impeded . | . . . Haulers Reinforced . | . . . Active Scanning Responses . | . . . Cargo Convoy Interrupts . | . . . Stealth | -11 -10 -9 --------- Run | Yrd Mat Mat Distress Signals 3 | . 1 2 Communications Jammed . | . . . Distress Signals . | . . . Times Spotted 23 | . 4 19 Peak Tracking Total 7 | . 3 7 Tactical Retreats 1 | . . 1 Traps | -11 -10 -9 ------- Run | Yrd Mat Mat Traps Triggered . | . . . Indirectly . | . . . Trap Hack Attempts . | . . . Triggered . | . . . Disarmed . | . . . Reprogrammed . | . . . Reused . | . . . Traps Extracted . | . . . Installed . | . . . Triggered . | . . . Machines | -11 -10 -9 ---------- Run | Yrd Mat Mat Machines Disabled 1 | . . 1 Max in Single Turn 1 | . . 1 Machines Repaired . | . . . Machines Dismantled . | . . . Machines Sabotaged . | . . . Overloaded Fab Kills . | . . . Hacking | -11 -10 -9 --------- Run | Yrd Mat Mat Machines Accessed 2 | . . 2 Terminals . | . . . Fabricators . | . . . Repair Stations 1 | . . 1 Recycling Units . | . . . Scanalyzers 1 | . . 1 Garrison Access . | . . . Total Hacks 4 | . . 4 Successful 3 | . . 3 Failed 1 | . . 1 Catastrophic . | . . . Database Lockouts . | . . . Manual . | . . . Terminals . | . . . Fabricators . | . . . Repair Stations 1 | . . 1 Recycling Units . | . . . Scanalyzers 3 | . . 3 Garrison Access . | . . . Terminal Hacks . | . . . Fabricator Hacks . | . . . Repair Station Hacks . | . . . Recycling Unit Hacks . | . . . Scanalyzer 3 | . . 3 Insert Component 1 | . . 1 Analyze 2 | . . 2 Garrison Access Hacks . | . . . Unauthorized Hacks . | . . . Terminals . | . . . Fabricators . | . . . Repair Stations . | . . . Recycling Units . | . . . Scanalyzers . | . . . Garrison Access . | . . . Data Cores Recovered . | . . . Used . | . . . Hacking Detections 1 | . . 1 Full Trace Events 1 | . . 1 Feedback Events . | . . . Feedback Blocked . | . . . Robot Schematics Acquired . | . . . Robots Built . | . . . Authchips . | . . . Time . | . . . Total Robot Build Rating . | . . . Part Schematics Acquired 1 | . . 1 Parts Built . | . . . Authchips . | . . . Time . | . . . Total Part Build Rating . | . . . Part Studies Acquired . | . . . Parts Repaired . | . . . Time . | . . . Parts Recycled . | . . . Recycled Matter . | . . . Retrieved Matter . | . . . Retrieved Components . | . . . Parts Scanalyzed 1 | . . 1 Part Schematics Acquired 1 | . . 1 Parts Damaged . | . . . Bothacking | -11 -10 -9 ------------ Run | Yrd Mat Mat Used RIF Installer . | . . . Robots Hacked . | . . . Non-combat . | . . . Combat . | . . . Robot Hacks Applied . | . . . Relay Couplers Released . | . . . Fabnet Peak Effective % . | . . . Robots Rewired . | . . . Allies Hacked . | . . . Hacks Repelled . | . . . Allies | -11 -10 -9 -------- Run | Yrd Mat Mat Total Allies . | . . . Largest Group . | . . . Highest-Rated Group . | . . . Highest-Rated Ally . | . . . Total Orders . | . . . Ally Attacks . | . . . Total Damage . | . . . Kills . | . . . Allies Corrupted . | . . . Allies Melted . | . . . Intel | -11 -10 -9 ------- Run | Yrd Mat Mat Active Infowar (turns) 355 | . . 355 Terrain 355 | . . 355 Robot Analysis Total . | . . . Derelict Logs Recovered . | . . . Drone Launches . | . . . Drone Recoveries . | . . . Exploration | -11 -10 -9 ------------- Run | Yrd Mat Mat Turns Passed 1707 | 75 290 1342 Spaces Moved 479 | 47 169 263 Core 13 | 12 . 1 Treads 317 | 35 169 113 Legs 149 | . . 149 Wheels . | . . . Hover . | . . . Flight . | . . . Fastest Speed 50 | 50 160 160 Average Speed 316 | 131 160 449 Slowest Speed 2600 | 160 160 2600 Overloaded Moves . | . . . Propulsion Burnouts . | . . . Robots Hopped . | . . . Potential Cave-ins . | . . . Cave-ins Triggered . | . . . Exploration Rate (%) 18 | 4 27 24 Regions Visited 2 Branch Regions . Pre-discovered Areas . | . . . Known Exits Taken . | . . . Unknown Exits Taken 2 | 1 1 . Scrap Searched . | . . . Spaces Dug . | . . . Terrain Destroyed 2 | . . 2 Melee . | . . . Projectile . | . . . AOE 2 | . . 2 Terrain Rammed . | . . . Walls Destroyed . | . . . Machines Disabled . | . . . Actions | -11 -10 -9 --------- Run | Yrd Mat Mat Total 580 | 60 179 341 Wait . | . . . Move 477 | 46 168 263 Hop . | . . . Pick Up 31 | 8 3 20 Fast Attach . | . . . Attach 14 | 6 2 6 Detach 1 | . 1 . Swap 6 | . . 6 Drop 3 | . . 3 Fire 48 | . 5 43 Melee . | . . . Ram . | . . . Kick . | . . . Crush . | . . . Escape Stasis . | . . . Rewire . | . . . Trap . | . . . Miscellaneous . | . . . Route ------- -11/Scrapyard -10/Materials -9/Materials History --------- Turn | Location | Event 13 | -11/Scrapyard | Discovered new exit (range 15) 76 | -11/Scrapyard | Entered Materials 251 | -10/Materials | Discovered new exit (range 13) 315 | -10/Materials | Build established: Mutant 366 | -10/Materials | Entered another Materials area 366 | -9/Materials | Evolved 2 slots: Propulsion x1, Utility x1 696 | -9/Materials | Build established: Hauler-Mutant 1671 | -9/Materials | Core integrity fell below 50% 1687 | -9/Materials | Core integrity fell below 20% 1708 | -9/Materials | Destroyed by Y-45 Defender with Beam Rifle Last Messages --------------- 01690_ S-10 Pest destroyed. 01690_ Switching to secondary target: Y-45 Defender. 01692_ R-06 Scavenger collects Tractor Beam. 01698_ R-06 Scavenger collects Lgt. Ion Engine. 01699_ S-10 Pest suffers critical hit (Burn). 01699_ Flight Unit melted. 01699_ S-10 Pest destroyed. 01699_ Switching to secondary target: Y-45 Defender. 01701_ K-01 Serf collects debris. 01702_ S-10 Pest destroyed. 01702_ Switching to secondary target: Y-45 Defender. 01702_ R-06 Scavenger collects Structural Scanner. 01704_ K-01 Serf collects debris. 01705_ L-31 Rogue suffers critical hit (Burn). 01705_ R-06 Scavenger collects Terrain Scanner. 01706_ K-01 Serf collects debris. Map ----- +----------------------------------------------------+ | ?????????????????????????????????# !!! | | ?????????????????????????????????# ! ! | | ?????????????????????????????????# | | ?????????????????????????????????# | | ?????????????????????????????????#^ | | ?????????????????????????????????# | | ?????????????????????????????????# | | ??????????????????????????#####+## | | ??????????????????? | | ???????????????????????#??##### ##+######## #### | | ??????????????????????????????# # "" #??# #??# | | ??????????????????????????????? # ""S ####+#### | | ???????????????????????????#??# # "" ## # | | ????????????????????#?????????# # ## """# | | ????????????????????# ????????# # ## """# | | ????????????????????# ??"????## # ## """# | | ????????????????????# "???#??## ######### # | | ????????????????????# "???????# #??#????# # | | ?????????????????? ?# "???????# ############+### | | ????????????????????# ???????# ## | | ????????????????????# ??#####+## | | ????????????????????# ??# # | | ????????????????????? ??# # ############ | | ???????????????????#?##r### "" # ##?#?##????# | | ???????????#k ### %!## "T # #?????????## | | ???????????# ; *gl@k "" t ###????????# | | ???????????# ###Yk=## # #???########% | | ???????????#?????????# [%######### #? ## | | ?????????????????????#% #??#????#% #?? ## | | ????????????????????# #??????# #? ? ##% | | ??????????????????? ?#?#?#?# # ## | | ?????????????????? w ????#??# # ## | | ?????????????????^ #???#?## + ## | | ????????????????##### ???#???# # ## | | ?????????????? #????###+##???#???# #?? ? [ ##% | | ?????????????????????? ?? ? ???## ##???????### | | ?????????????????????? ????? ?#?# %########### | | ????????????????????????? ? ????# | | ???????????????????????????"????# | | ??????????????????????????????#?# | | ??????????????????????????????#?# ###+###### | | ?????????????????????????? ?????## ## # | | ??????????????????????????????#??# ## """ + | | ?????????????????????????????????# ## "R ### | | ????????????????????????????#????# ## """ #?? | | ?????????????????????????????????# ## "" ##? | | ???????????????????????????????#?# ##| #?? | | ?????????????????????????????????# ?# #?? | | ?????????????????????????????????# ?# ##? | | ?????????????????????????????????# ?# ##? | +----------------------------------------------------+ Best States ------------- Heat Dissipation 28 Energy Generation 12 Energy Capacity 265 Matter Stores 300 Matter Capacity 300 Sight Range 16 Terrain Scan Range 14 Terrain Scan Density 10 Evasion (%) 50 Recoil Reduction 2 Item Schematics ----------------- Field Recycling Unit | -9/Materials | Scanalyzed Robot Schematics ------------------ None Fabricated ------------ Nothing Repaired ---------- Nothing Studied --------- None Alien Tech Used ----------------- None Achievements -------------- A Problem For Future Me Tank Challenges ------------ None Game ------ Seed CargoServoStripper Manual? 0 Play Time 00:13:41 Cumulative 7.4 hours Start 2026.08.08 @ 01:31:58 End 2026.08.10 @ 00:51:49 Sessions 1 Manual Loads 0 Difficulty Rogue Special Mode None Game No. 12 Rogue 12 Adventurer 0 Explorer 0 Win Type - Total 0 Types 0/0/0/0/0/0/0/0/0/0 Lore% 4 Gallery% 10 Achievement% 8 Wizard Run 0 Options --------- Layout 1 ASCII 0 Keyboard 0 Movement Mouse Keybinds 0 Fullscreen 2 Font 32/SmallcapsGlow Map View 50x35 Zoom Use 0% Tactical HUD 1 Map Filters NONE Filters NONE Steam 1 RUN: 5832d6cc-8713-4574-aeaa-c4bd71747408